bitfinex-derivatives/quotes_SOLF0:USTF0_20250909
["timestamp","ask_amount","ask_price","bid_price","bid_amount"]
[1757436454729,0.03242498,214.66,214.63,4.25]
[1757436455231,0.03242498,214.66,214.62,2.52843299]
[1757436455529,0.03242498,214.66,214.63,4.25]
[1757436456131,0.03242498,214.66,214.59,4.25]
[1757436456351,0.03242498,214.66,214.61,4.25]
[1757436456730,0.03242498,214.66,214.62,2.52843299]
[1757436457533,0.03242498,214.66,214.63,4.25]
[1757436457835,0.03242498,214.66,214.62,2.52843299]
[1757436458034,0.03242498,214.66,214.63,4.25]
[1757436458234,0.03242498,214.66,214.62,2.52843299]
[1757436458931,0.03242498,214.66,214.63,4.25]
[1757436459236,0.03242498,214.66,214.62,2.52843299]
[1757436460034,0.03242498,214.66,214.64,2.52843299]
[1757436460338,0.03242498,214.66,214.62,6.77843299]
[1757436460536,0.03242498,214.66,214.63,4.25]
[1757436461228,7.39242498,214.66,214.63,4.25]
[1757436461435,7.39242498,214.66,214.6,6.77843299]
[1757436462034,7.39242498,214.66,214.6,4.25]
[1757436462531,0.03242498,214.66,214.6,4.25]
[1757436462733,0.03242498,214.66,214.62,4.25]
[1757436462939,0.03242498,214.66,214.61,2.52843299]
[1757436463631,0.03242498,214.66,214.58,312.9]
[1757436463838,0.03242498,214.66,214.62,2.52843299]
[1757436464229,0.03242498,214.66,214.63,4.25]
[1757436464433,0.03242498,214.66,214.62,2.52843299]
[1757436464634,0.03242498,214.66,214.59,4.25]
[1757436464832,0.03242498,214.66,214.58,312.9]
[1757436464833,0.03242498,214.66,214.62,6.77843299]
[1757436466635,0.03242498,214.66,214.62,2.52843299]
[1757436466841,7.05242498,214.66,214.6,4.25]
[1757436467041,7.02,214.64,214.6,4.25]
[1757436467241,2.52843299,214.65,214.57,4.25]
[1757436467242,9.54843299,214.65,214.57,4.25]
[1757436468040,9.54843299,214.63,214.57,4.25]
[1757436468937,9.54843299,214.63,214.54,6.77843299]
[1757436469441,0.03045674,214.61,214.54,6.77843299]
[1757436470346,7.02,214.6,214.54,6.77843299]
[1757436471656,9.54843299,214.6,214.54,4.25]
[1757436473454,9.54843299,214.6,214.52,89.66]
[1757436473755,9.54843299,214.6,214.51,6.77843299]
[1757436474062,0.03045674,214.61,214.51,4.25]
[1757436474063,2.52843299,214.58,214.51,4.25]
[1757436474255,2.52843299,214.58,214.45,313.1]
[1757436474256,7.02,214.55,214.47,4.25]
[1757436474454,2.52843299,214.59,214.5,2.52843299]
[1757436474654,0.03184339,214.53,214.46,4.25]
[1757436474854,0.03184339,214.53,214.5,6.77843299]
[1757436475556,0.03184339,214.53,214.5,2.52843299]
[1757436475751,0.03184339,214.53,214.51,4.25]
[1757436477451,0.03184339,214.53,214.49,2.52843299]
[1757436477757,0.03184339,214.53,214.5,4.25]
[1757436478557,0.03184339,214.53,214.49,2.52843299]
[1757436478751,0.03184339,214.53,214.5,4.25]
[1757436478948,0.03184339,214.53,214.49,2.52843299]
[1757436479353,0.03184339,214.53,214.5,4.25]
[1757436480661,0.03184339,214.53,214.46,4.25]
[1757436480862,0.03184339,214.53,214.45,313.1]
[1757436480863,0.03184339,214.53,214.49,4.25]
[1757436481456,0.03184339,214.53,214.48,2.52843299]
[1757436481657,0.03184339,214.53,214.43,115.48]
[1757436481658,0.03184339,214.53,214.51,4.25]
[1757436485267,0.03184339,214.53,214.48,4.25]
[1757436485465,0.03184339,214.53,214.47,6.77843299]
[1757436486163,0.03184339,214.53,214.48,4.25]
[1757436486461,0.03184339,214.53,214.49,2.52843299]
[1757436486662,0.03184339,214.53,214.5,4.25]
[1757436487266,0.03184339,214.53,214.51,2.52843299]
[1757436487468,0.03184339,214.53,214.52,4.25]
[1757436489364,7.02,214.61,214.52,4.71]
[1757436489565,7.02,214.61,214.55,4.22]
[1757436490867,2.52843299,214.64,214.57,4.22]
[1757436491068,7.02,214.66,214.57,4.22]
[1757436491272,2.52843299,214.65,214.57,4.22]
[1757436492172,2.52843299,214.63,214.57,4.22]
[1757436492566,5.23180088,214.74,214.57,4.22]
[1757436492769,5.23180088,214.74,214.56,2.52843299]
[1757436492770,2.52843299,214.68,214.6,4.22]
[1757436492976,2.52843299,214.68,214.61,2.52843299]
[1757436493581,2.52843299,214.68,214.6,4.22]
[1757436493874,2.52843299,214.68,214.6,6.74843299]
[1757436495179,2.52843299,214.68,214.6,4.22]
[1757436495379,7.24,214.67,214.6,4.22]
[1757436499779,2.52843299,214.68,214.61,2.52843299]
[1757436499976,9.76843299,214.7,214.61,2.52843299]
[1757436501882,2.52843299,214.66,214.6,4.22]
[1757436502183,2.52843299,214.66,214.58,2.52843299]
[1757436502784,7.24,214.65,214.57,4.22]
[1757436502984,7.24,214.65,214.57,6.74843299]
[1757436504385,7.24,214.65,214.57,4.22]
[1757436504978,7.24,214.65,214.59,0.03104491]
[1757436507886,11.19327354,214.65,214.59,0.03104491]
[1757436508089,7.24,214.61,214.59,0.03104491]
[1757436508693,7.7,214.61,214.59,0.03104491]
[1757436508985,7.7,214.61,214.5,4.22]
[1757436509182,7.24,214.61,214.5,4.22]
[1757436509588,11.19327354,214.61,214.5,4.22]
[1757436509995,0.03027774,214.58,214.5,4.22]
[1757436510191,7.24,214.57,214.5,4.22]
[1757436520906,7.24,214.57,214.46,4.25]
[1757436521604,0.03544371,214.54,214.46,4.25]
[1757436529915,7.48544371,214.54,214.46,4.25]
[1757436540626,3.95327354,214.52,214.42,4.26]
[1757436540823,7.45,214.51,214.42,4.26]
[1757436541221,0.03185836,214.49,214.42,4.26]
[1757436541719,7.48185836,214.49,214.42,4.26]
[1757436543523,0.03185836,214.49,214.42,4.26]
[1757436545326,0.03185836,214.49,214.44,4.26]
[1757436545529,0.03185836,214.49,214.46,4.26]
[1757436545729,7.48185836,214.49,214.46,4.26]
[1757436546328,0.03185836,214.49,214.41,4.26]
[1757436546518,0.03185836,214.49,214.43,4.26]
[1757436546723,0.03185836,214.49,214.45,4.26]
[1757436547027,0.03185836,214.49,214.46,7.9743614]
[1757436547227,0.03185836,214.49,214.46,4.26]
[1757436548431,7.48185836,214.49,214.46,4.26]
[1757436549127,0.03185836,214.49,214.41,8.14448898]
[1757436549331,0.03185836,214.49,214.43,4.26]
[1757436549523,7.48185836,214.49,214.45,4.26]
[1757436549824,0.03185836,214.49,214.46,3.71850728]
[1757436550029,7.45,214.48,214.41,4.26]
[1757436550326,7.45,214.48,214.42,3.72045812]
[1757436550520,0.03185836,214.49,214.43,3.72045812]
[1757436550725,0.03185836,214.49,214.44,3.72045812]
[1757436550930,7.45,214.48,214.41,4.26]
[1757436551228,7.45,214.46,214.33,10.98448898]
[1757436551428,3.95327354,214.44,214.33,7.1]
[1757436551730,123.59,214.43,214.33,7.1]
[1757436551931,0.03429676,214.41,214.33,7.1]
[1757436554628,123.32,214.4,214.29,7.11]
[1757436554829,3.95327354,214.39,214.29,7.11]
[1757436555230,0.03369525,214.36,214.29,7.11]
[1757436564643,2.53661958,214.35,214.29,7.11]
[1757436567347,0.03369525,214.36,214.29,7.11]
[1757436567555,2.57031483,214.36,214.31,7.11]
[1757436567852,2.53661958,214.36,214.31,7.11]
[1757436568254,2.56885431,214.36,214.31,7.11]
[1757436568948,2.56885431,214.36,214.3,2.53661958]
[1757436569150,0.03223473,214.36,214.3,2.53661958]
[1757436569452,0.03223473,214.36,214.31,7.11]
[1757436570352,0.03223473,214.36,214.3,2.53661958]
[1757436570653,0.03223473,214.36,214.31,7.11]
[1757436571153,0.03223473,214.36,214.3,2.53661958]
[1757436571948,0.03223473,214.36,214.31,7.11]
[1757436572154,0.03223473,214.36,214.3,2.53661958]
[1757436572543,0.03223473,214.36,214.31,7.11]
[1757436572949,0.03223473,214.36,214.3,2.53661958]
[1757436573451,0.03223473,214.36,214.31,7.11]
[1757436573651,0.03223473,214.36,214.3,2.53661958]
[1757436573853,0.03223473,214.36,214.31,7.11]
[1757436574153,0.03223473,214.36,214.3,2.53661958]
[1757436574655,0.03223473,214.36,214.31,7.11]
[1757436575251,0.03223473,214.36,214.3,2.53661958]
[1757436575846,0.03223473,214.36,214.31,7.11]
[1757436576049,0.03223473,214.36,214.3,2.53661958]
[1757436576553,0.03223473,214.36,214.31,7.11]
[1757436576757,2.53661958,214.33,214.28,7.11]
[1757436577052,9.71661958,214.33,214.27,7.11]
[1757436577253,2.53661958,214.38,214.31,7.11]
[1757436577459,0.03409309,214.33,214.3,2.53661958]
[1757436577660,2.53661958,214.38,214.31,7.11]
[1757436577858,0.03413737,214.34,214.3,2.53661958]
[1757436578159,0.03413737,214.34,214.32,2.53661958]
[1757436578359,0.03413737,214.34,214.23,7.11]
[1757436578564,0.03413737,214.34,214.3,7.11]
[1757436578956,0.03413737,214.34,214.29,2.53661958]
[1757436579152,0.03413737,214.34,214.3,7.11]
[1757436579357,0.03413737,214.34,214.32,7.11]
[1757436579559,0.03413737,214.34,214.31,2.53661958]
[1757436580262,0.03413737,214.34,214.32,7.11]
[1757436580656,7.21413737,214.34,214.25,7.11]
[1757436580854,7.21413737,214.34,214.3,7.11]
[1757436581263,0.03413737,214.34,214.3,7.11]
[1757436581465,0.03413737,214.34,214.29,2.53661958]
[1757436581767,0.03413737,214.34,214.32,7.11]
[1757436582166,0.03413737,214.34,214.24,27.0]
[1757436582359,0.03413737,214.34,214.32,7.11]
[1757436582762,0.03413737,214.34,214.31,2.53661958]
[1757436582958,0.03413737,214.34,214.32,7.11]
[1757436583165,0.03413737,214.34,214.31,2.53661958]
[1757436583363,0.03413737,214.34,214.32,7.11]
[1757436583565,0.03413737,214.34,214.31,2.53661958]
[1757436583758,0.03413737,214.34,214.32,7.12]
[1757436583965,0.03413737,214.34,214.31,2.53661958]
[1757436584364,0.03413737,214.34,214.32,7.12]
[1757436585166,0.03413737,214.34,214.31,2.53661958]
[1757436585366,0.03413737,214.34,214.32,7.11]
[1757436585967,0.03413737,214.34,214.31,2.53661958]
[1757436586160,0.03413737,214.34,214.22,5.15990653]
[1757436586357,0.03413737,214.34,214.29,2.53661958]
[1757436586761,0.03413737,214.34,214.22,110.4973097]
[1757436586966,0.03413737,214.34,214.3,2.53661958]
[1757436587362,0.03413737,214.34,214.31,7.11]
[1757436587861,0.03413737,214.34,214.3,2.53661958]
[1757436588262,0.03413737,214.34,214.31,7.11]
[1757436588761,7.65413737,214.34,214.31,7.11]
[1757436589568,7.65413737,214.34,214.28,2.53661958]
[1757436589768,7.65413737,214.34,214.29,7.11]
[1757436589970,0.03413737,214.34,214.28,2.53661958]
[1757436590270,0.03413737,214.34,214.3,7.11]
[1757436590570,0.03413737,214.34,214.29,2.53661958]
[1757436590766,0.03413737,214.34,214.3,7.11]
[1757436591171,0.03413737,214.34,214.29,2.53661958]
[1757436591673,0.03413737,214.34,214.3,7.11]
[1757436591863,0.03413737,214.34,214.29,2.53661958]
[1757436592270,0.03413737,214.34,214.3,7.11]
[1757436592769,0.03413737,214.34,214.29,2.53661958]
[1757436593466,0.03413737,214.34,214.3,7.11]
[1757436593671,0.03413737,214.34,214.29,2.53661958]
[1757436594266,0.03413737,214.34,214.3,7.11]
[1757436594769,0.03413737,214.34,214.29,2.53661958]
[1757436595264,0.03413737,214.34,214.3,7.11]
[1757436595469,0.03413737,214.34,214.29,2.53661958]
[1757436595867,0.03413737,214.34,214.3,7.11]
[1757436596066,0.03413737,214.34,214.29,2.53661958]
[1757436596269,0.03413737,214.34,214.3,7.11]
[1757436596469,0.03413737,214.34,214.29,2.53661958]
[1757436596867,0.03413737,214.34,214.3,7.11]
[1757436597071,0.03413737,214.34,214.29,2.53661958]
[1757436597268,0.03413737,214.34,214.3,7.11]
[1757436597473,0.03413737,214.34,214.29,2.53661958]
[1757436597672,0.03413737,214.34,214.3,7.11]
[1757436597871,0.03413737,214.34,214.29,2.53661958]
[1757436598371,0.03413737,214.34,214.3,7.11]
[1757436598574,0.03413737,214.34,214.29,2.53661958]
[1757436598876,0.03413737,214.34,214.3,7.11]
[1757436599178,0.03413737,214.34,214.29,2.53661958]
[1757436599376,0.03413737,214.34,214.3,7.11]
[1757436599673,0.03413737,214.34,214.29,2.53661958]
[1757436600079,0.03413737,214.34,214.3,7.11]
[1757436600577,0.03413737,214.34,214.29,2.53661958]
[1757436600778,0.03413737,214.34,214.3,7.11]
[1757436601077,0.03413737,214.34,214.29,2.53661958]
[1757436601473,0.03413737,214.34,214.3,7.11]
[1757436601770,0.03413737,214.34,214.29,2.53661958]
[1757436601977,0.03413737,214.34,214.3,7.11]
[1757436602570,0.03413737,214.34,214.29,2.53661958]
[1757436602775,0.03413737,214.34,214.3,7.11]
[1757436602977,0.03413737,214.34,214.29,2.53661958]
[1757436603176,0.03413737,214.34,214.3,7.11]
[1757436603378,0.03413737,214.34,214.29,2.53661958]
[1757436603577,0.03413737,214.34,214.3,7.11]
[1757436604479,0.03413737,214.34,214.29,2.53661958]
[1757436604675,0.03413737,214.34,214.32,7.11]
[1757436604976,0.03413737,214.34,214.24,7.73985979]
[1757436604977,7.62,214.44,214.34,7.08]
[1757436605277,7.62,214.44,214.38,9.61661958]
[1757436606182,7.62,214.44,214.39,0.03428064]
[1757436606478,74.85514693,214.45,214.39,0.03428064]
[1757436606479,82.47514693,214.45,214.39,0.03428064]
[1757436613280,2.53661958,214.44,214.39,0.03428064]
[1757436613488,7.3,214.41,214.39,0.03428064]
[1757436613882,2.53661958,214.42,214.39,0.03428064]
[1757436614390,7.3,214.41,214.39,0.03428064]
[1757436614890,2.53661958,214.42,214.39,0.03428064]
[1757436615091,9.83661958,214.4,214.39,0.03428064]
[1757436616599,10.29661958,214.4,214.39,0.03428064]
[1757436618295,7.3,214.39,214.29,9.60661958]
[1757436618496,9.83661958,214.37,214.29,9.60661958]
[1757436619396,0.03029444,214.35,214.29,9.60661958]
[1757436620296,0.03029444,214.35,214.29,7.07]
[1757436620592,0.03029444,214.35,214.3,2.53661958]
[1757436620986,0.03029444,214.35,214.31,7.11]
[1757436621696,7.33029444,214.35,214.31,7.11]
[1757436621893,7.33029444,214.35,214.3,2.53661958]
[1757436622094,7.33029444,214.35,214.31,7.11]
[1757436622399,7.3,214.34,214.31,7.11]
[1757436623091,0.03029444,214.35,214.32,2.53661958]
[1757436623294,0.03029444,214.35,214.33,7.11]
[1757436623592,0.03029444,214.35,214.34,9.64661958]
[1757436623799,82.15514693,214.45,214.35,7.11]
[1757436623995,82.15514693,214.45,214.39,2.53661958]
[1757436624990,82.15514693,214.45,214.35,9.64661958]
[1757436624991,7.3,214.43,214.35,9.64661958]
[1757436625193,2.53661958,214.4,214.33,2.53661958]
[1757436625398,7.3,214.39,214.33,2.53661958]
[1757436625592,7.3,214.39,214.35,2.53661958]
[1757436625798,7.3,214.39,214.35,9.64661958]
[1757436626396,7.3,214.39,214.35,7.11]
[1757436628599,7.3,214.44,214.35,7.11]
[1757436631202,7.3,214.41,214.31,7.11]
[1757436635000,74.85514693,214.45,214.32,7.11]
[1757436635204,82.15514693,214.45,214.35,7.11]
[1757436635905,7.3,214.45,214.35,7.11]
[1757436636205,7.3,214.45,214.38,7.11]
[1757436638699,7.3,214.5,214.38,7.11]
[1757436638895,7.3,214.53,214.43,3.96171733]
[1757436639095,7.3,214.53,214.44,7.11]
[1757436639402,320.84,214.57,214.47,7.11]
[1757436641106,324.80171733,214.57,214.43,3.89191126]
[1757436641305,7.3,214.56,214.43,11.07171733]
[1757436642299,3.96171733,214.56,214.43,11.07171733]
[1757436642612,7.3,214.55,214.43,11.07171733]
[1757436642804,3.96171733,214.56,214.43,11.07171733]
[1757436643104,7.3,214.55,214.43,11.07171733]
[1757436643300,3.96171733,214.56,214.43,11.07171733]
[1757436643909,7.64,214.54,214.43,11.07171733]
[1757436644608,313.54,214.57,214.47,7.1]
[1757436645302,7.64,214.58,214.42,3.89191126]
[1757436645303,7.64,214.58,214.5,7.1]
[1757436652814,7.64,214.58,214.45,7.1]
[1757436653417,3.96171733,214.56,214.45,7.1]
[1757436653617,7.64,214.55,214.45,7.1]
[1757436653919,7.64,214.48,214.38,7.1]
[1757436659020,7.64,214.48,214.31,13.64]
[1757436659021,7.64,214.48,214.34,7.1]
[1757436661215,3.96171733,214.43,214.34,7.1]
[1757436661421,7.64,214.42,214.3,7.1]
[1757436672728,7.64,214.42,214.33,7.1]
[1757436672922,35.04,214.48,214.36,7.1]
[1757436673332,7.64,214.48,214.36,7.1]
[1757436673531,7.64,214.48,214.39,7.1]
[1757436673827,3.96171733,214.49,214.36,11.07171733]
[1757436674232,7.54,214.48,214.36,7.11]
[1757436675833,7.54,214.48,214.38,7.11]
[1757436680336,7.54,214.48,214.33,7.11]
[1757436680737,3.96171733,214.46,214.33,7.11]
[1757436681033,7.54,214.45,214.33,7.11]
[1757436681234,7.54,214.42,214.33,7.11]
[1757436683338,72.8296,214.42,214.33,7.11]
[1757436684139,4.1984,214.36,214.33,7.11]
[1757436684335,69.26591733,214.37,214.26,7.11]
[1757436684640,7.54,214.34,214.26,7.11]
[1757436685740,4.1993,214.31,214.26,7.11]
[1757436685941,11.7393,214.31,214.26,7.11]
[1757436686137,4.1993,214.31,214.26,7.11]
[1757436686342,7.54,214.3,214.26,7.11]
[1757436686942,4.1993,214.31,214.23,7.11]
[1757436687143,65.3042,214.37,214.23,7.11]
[1757436687144,7.54,214.33,214.23,7.11]
[1757436687647,7.54,214.33,214.25,7.11]
[1757436688545,10.07727882,214.33,214.27,2.53727882]
[1757436688746,10.07727882,214.33,214.25,7.11]
[1757436688747,10.07727882,214.33,214.25,9.64727882]
[1757436688946,10.07727882,214.33,214.25,7.11]
[1757436690244,7.54,214.28,214.2,22.11]
[1757436690443,2.53727882,214.27,214.2,22.11]
[1757436693953,7.54,214.24,214.2,22.11]
[1757436695054,2.53727882,214.25,214.21,7.11]
[1757436696556,14.27777882,214.25,214.21,7.11]
[1757436696754,2.53727882,214.23,214.2,15.0]
[1757436696947,7.54,214.22,214.2,15.0]
[1757436697748,2.53727882,214.21,214.2,15.0]
[1757436697957,10.07727882,214.21,214.2,15.0]
[1757436699355,10.07727882,214.21,214.14,50.0]
[1757436699356,10.53727882,214.21,214.14,50.0]
[1757436699554,2.53727882,214.17,214.14,57.43]
[1757436699748,4.2021,214.17,214.14,57.43]
[1757436704365,4.2021,214.17,214.15,7.24]
[1757436704855,4.2021,214.17,214.14,50.0]
[1757436704856,7.65,214.22,214.14,50.0]
[1757436705062,10.18727882,214.27,214.2,7.24]
[1757436705457,2.53727882,214.29,214.21,2.53727882]
[1757436705662,4.2,214.27,214.21,2.53727882]
[1757436706366,4.2003,214.26,214.22,7.24]
[1757436706662,4.2003,214.26,214.21,2.53727882]
[1757436706866,4.2003,214.26,214.22,7.24]
[1757436707067,4.2003,214.26,214.21,2.53727882]
[1757436707567,4.2003,214.26,214.22,7.24]
[1757436707867,4.1998,214.28,214.22,7.24]
[1757436708069,2.53727882,214.29,214.22,7.24]
[1757436708563,4.2002,214.27,214.21,2.53727882]
[1757436708861,4.2002,214.27,214.18,4.2016]
[1757436708862,2.53727882,214.33,214.26,7.24]
[1757436709958,4.1992,214.32,214.26,7.24]
[1757436710357,2.53727882,214.33,214.26,7.24]
[1757436711869,4.1994,214.31,214.25,2.53727882]
[1757436712070,4.1994,214.31,214.25,9.77727882]
[1757436714568,4.1987,214.34,214.27,2.53727882]
[1757436714773,4.1987,214.34,214.3,7.24]
[1757436716971,4.1987,214.34,214.28,2.53727882]
[1757436717168,4.1987,214.34,214.28,9.77727882]
[1757436719070,4.1987,214.34,214.28,7.24]
[1757436719374,4.1987,214.34,214.28,9.77727882]
[1757436721875,2.53727882,214.33,214.27,7.24]
[1757436722571,4.1991,214.32,214.27,7.24]
[1757436723171,4.1991,214.32,214.26,2.53727882]
[1757436723676,4.1991,214.32,214.27,7.24]
[1757436723877,4.1991,214.32,214.26,7.24]
[1757436724172,4.1991,214.32,214.27,2.53727882]
[1757436724375,7.65,214.38,214.3,7.24]
[1757436724574,7.65,214.42,214.34,7.24]
[1757436724881,2.53727882,214.39,214.34,7.24]
[1757436725178,7.65,214.38,214.34,7.24]
[1757436725676,2.53727882,214.39,214.34,7.24]
[1757436725880,2.53727882,214.35,214.28,9.77727882]
[1757436726881,7.68300459,214.34,214.29,7.27419593]
[1757436727176,7.65,214.33,214.29,7.27419593]
[1757436727774,7.65,214.33,214.3,7.24]
[1757436728468,7.65,214.33,214.29,0.03419593]
[1757436728469,2.53727882,214.31,214.29,0.03419593]
[1757436728670,7.65,214.3,214.29,0.03419593]
[1757436732880,11.8494,214.3,214.29,0.03419593]
[1757436733083,10.22028341,214.34,214.3,7.24]
[1757436733382,0.03300459,214.34,214.29,2.57147475]
[1757436733578,0.03300459,214.34,214.33,2.53727882]
[1757436733884,7.77300459,214.34,214.29,9.99147475]
[1757436734285,7.74,214.32,214.29,0.03419593]
[1757436734480,7.74,214.3,214.29,0.03419593]
[1757436737881,6.73647882,214.31,214.29,0.03419593]
[1757436738086,4.1992,214.31,214.29,0.03419593]
[1757436738287,11.9392,214.31,214.29,0.03419593]
[1757436740290,7.74,214.3,214.29,0.03419593]
[1757436740792,7.74,214.27,214.18,2.53727882]
[1757436741091,10.27727882,214.24,214.17,7.42]
[1757436741885,4.2011,214.22,214.17,7.42]
[1757436742185,4.2011,214.22,214.14,54.2025]
[1757436742186,0.03234952,214.23,214.21,7.42]
[1757436743292,0.03234952,214.23,214.2,2.53727882]
[1757436744493,0.03234952,214.23,214.21,7.42]
[1757436744790,7.74,214.22,214.18,2.53727882]
[1757436744994,7.74,214.22,214.18,9.95727882]
[1757436745394,4.23314952,214.23,214.19,7.42]
[1757436746592,4.23314952,214.23,214.18,2.53727882]
[1757436746793,4.23314952,214.23,214.19,7.42]
[1757436746997,4.23314952,214.23,214.18,2.53727882]
[1757436747291,4.23314952,214.23,214.19,7.42]
[1757436749492,11.97314952,214.23,214.19,7.42]
[1757436749794,4.201,214.22,214.18,9.95727882]
[1757436750294,4.201,214.22,214.19,7.42]
[1757436753291,11.941,214.22,214.19,7.42]
[1757436753492,7.74,214.22,214.15,7.42]
[1757436754896,4.2016,214.19,214.15,7.42]
[1757436755200,4.2016,214.19,214.14,50.0]
[1757436755800,4.23287279,214.19,214.15,7.42]
[1757436756203,4.23287279,214.19,214.14,50.0]
[1757436756704,4.2018,214.18,214.15,7.42]
[1757436756900,0.03127279,214.19,214.15,7.42]
[1757436757098,7.77127279,214.19,214.15,7.42]
[1757436757701,4.202,214.17,214.15,7.42]
[1757436757904,0.03127279,214.19,214.14,50.0]
[1757436758209,4.23277279,214.19,214.15,7.42]
[1757436760004,4.2018,214.18,214.15,7.42]
[1757436760302,7.74,214.18,214.14,57.42]
[1757436761294,0.03127279,214.19,214.14,57.42]
[1757436761495,7.74,214.18,214.14,57.42]
[1757436761700,0.03127279,214.19,214.14,50.0]
[1757436762007,7.74,214.15,214.14,50.0]
[1757436762805,4.2022,214.16,214.14,50.0]
[1757436764211,11.3822,214.16,214.14,50.0]
[1757436764606,4.2018,214.18,214.15,7.36]
[1757436764805,7.18,214.18,214.15,7.36]
[1757436765409,4.202,214.17,214.15,7.36]
[1757436766807,11.3823,214.16,214.14,50.0]
[1757436767007,4.2023,214.16,214.14,50.0]
[1757436767502,11.3823,214.16,214.14,50.0]
[1757436768413,4.2023,214.16,214.14,50.0]
[1757436769113,4.2023,214.16,214.15,7.36]
[1757436770514,4.2023,214.16,214.14,50.0]
[1757436771616,4.2018,214.18,214.14,50.0]
[1757436771818,4.2018,214.18,214.15,7.36]
[1757436772016,0.03127279,214.19,214.15,7.36]
[1757436772521,7.18,214.38,214.17,12.51990653]
[1757436772715,116.2,214.43,214.23,7.36]
[1757436772716,3.96811685,214.31,214.23,7.36]
[1757436773014,3.96811685,214.28,214.17,7.36]
[1757436773409,3.96811685,214.29,214.17,7.36]
[1757436776617,7.18,214.28,214.17,7.36]
[1757436779226,7.18,214.36,214.2,3.96811685]
[1757436779435,7.18,214.34,214.21,7.36]
[1757436779732,65.3149,214.33,214.21,7.36]
[1757436779930,4.1995,214.3,214.21,7.36]
[1757436780128,65.3178,214.32,214.21,7.36]
[1757436780431,7.18,214.28,214.21,7.36]
[1757436780737,4.2004,214.25,214.21,7.36]
[1757436780931,7.18,214.25,214.21,7.36]
[1757436781135,65.3385,214.26,214.21,0.03186175]
[1757436781336,4.2009,214.22,214.21,0.03186175]
[1757436781835,11.8409,214.22,214.21,0.03186175]
[1757436782533,11.3809,214.22,214.21,0.03186175]
[1757436783231,4.2009,214.22,214.21,0.03186175]
[1757436786032,0.0300296,214.26,214.21,0.03186175]
[1757436786232,0.0300296,214.26,214.22,7.36]
[1757436787630,0.0300296,214.26,214.21,0.03186175]
[1757436788431,0.0300296,214.26,214.22,7.36]
[1757436788836,0.0300296,214.26,214.21,0.03186175]
[1757436789038,0.0300296,214.26,214.24,7.36]
[1757436789241,0.0300296,214.26,214.23,3.96811685]
[1757436789740,0.0300296,214.26,214.24,7.36]
[1757436790042,0.0300296,214.26,214.25,7.36]
[1757436794535,0.0300296,214.26,214.25,11.5603]
[1757436798437,4.1988,214.33,214.25,11.5603]
[1757436798633,4.1988,214.33,214.26,3.96811685]
[1757436798838,4.1988,214.33,214.27,7.48]
[1757436799241,4.1983,214.36,214.27,7.48]
[1757436799438,4.1983,214.36,214.29,11.44811685]
[1757436799633,4.1983,214.36,214.29,11.48027851]
[1757436800840,7.23,214.35,214.29,0.03216166]
[1757436801841,4.1988,214.33,214.29,0.03216166]
[1757436802041,4.1988,214.33,214.29,7.51216166]
[1757436802636,11.4288,214.33,214.29,7.51216166]
[1757436802832,11.4288,214.33,214.3,7.48]
[1757436803240,4.1988,214.33,214.3,7.48]
[1757436803439,4.1983,214.36,214.3,7.48]
[1757436803631,7.23,214.37,214.3,7.48]
[1757436804941,11.4285,214.35,214.3,7.48]
[1757436805145,11.4285,214.35,214.29,11.48027851]
[1757436805539,4.198,214.37,214.29,15.67967851]
[1757436808137,52.55,214.39,214.29,15.67967851]
[1757436809942,4.1985,214.35,214.29,15.67967851]
[1757436811543,7.23,214.32,214.29,0.03216166]